fUSD/lending_fUSD_20250120
["ID","MTS","AMOUNT","RATE_DAILY","PERIOD"]
[349722364,1737394249194,-500.0,0.00021772,2]
[349722365,1737394249204,-500.0,0.00021772,2]
[349722366,1737394249213,-619.53,0.00021772,2]
[349722367,1737394249223,-505.60848681,0.00021772,2]
[349722368,1737394249235,-500.0,0.00021772,2]
[349722369,1737394249244,-500.0,0.00021772,2]
[349722370,1737394249254,-500.0,0.00021772,2]
[349722371,1737394249263,-509.56886239,0.00021772,2]
[349722372,1737394249272,-500.0,0.00021772,2]
[349722373,1737394249282,-500.0,0.00021772,2]
[349722374,1737394249291,-500.0,0.00021772,2]
[349722375,1737394249302,-500.0,0.00021772,2]
[349722376,1737394249311,-205.64702266,0.00021772,2]
[349722377,1737394249320,-500.0,0.00021772,2]
[349722378,1737394249330,-338.35049807,0.00021772,2]
[349722379,1737394249340,-500.0,0.00021772,2]
[349722380,1737394249349,-500.0,0.00021772,2]
[349722381,1737394249359,-500.0,0.00021772,2]
[349722382,1737394249368,-500.0,0.00021772,2]
[349722383,1737394249378,-177.54801677,0.00021772,2]
[349722384,1737394249388,-500.0,0.00021772,2]
[349722385,1737394249398,-423.66024233,0.00021772,2]
[349722386,1737394249407,-500.0,0.00021772,2]
[349722387,1737394249418,-508.71621178,0.00021772,2]
[349722388,1737394249428,-500.0,0.00021772,2]
[349722389,1737394249439,-341.05885066,0.00021772,2]
[349722390,1737394249448,-500.0,0.00021772,2]
[349722391,1737394249458,-500.0,0.00021772,2]
[349722392,1737394249468,-500.0,0.00021772,2]
[349722393,1737394249480,-500.0,0.00021772,2]
[349722394,1737394249490,-500.0,0.00021772,2]
[349722395,1737394249500,-500.0,0.00021772,2]
[349722396,1737394249509,-500.0,0.00021772,2]
[349722397,1737394249519,-500.0,0.00021772,2]
[349722398,1737394249529,-500.0,0.00021772,2]
[349722399,1737394249539,-500.0,0.00021772,2]
[349722400,1737394249549,-500.0,0.00021772,2]
[349722401,1737394249558,-500.0,0.00021772,2]
[349722402,1737394249568,-500.0,0.00021772,2]
[349722403,1737394249577,-500.0,0.00021772,2]
[349722404,1737394249587,-500.0,0.00021772,2]
[349722405,1737394249597,-500.0,0.00021772,2]
[349722406,1737394249606,-500.0,0.00021772,7]
[349722407,1737394249616,-500.0,0.00021772,2]
[349722408,1737394249625,-500.0,0.00021772,2]
[349722409,1737394249635,-500.0,0.00021772,2]
[349722410,1737394249644,-500.0,0.00021772,2]
[349722411,1737394249654,-1121.31,0.00021772,2]
[349722412,1737394249663,-500.0,0.00021772,2]
[349722413,1737394249673,-500.0,0.00021772,2]
[349722414,1737394249683,-500.0,0.00021772,2]
[349722415,1737394249693,-288.62189226,0.00021772,2]
[349722416,1737394249702,-530.77,0.00021772,2]
[349722417,1737394249712,-500.0,0.00021772,2]
[349722418,1737394249721,-500.0,0.00021772,2]
[349722419,1737394249733,-500.0,0.00021772,2]
[349722420,1737394249743,-834.59,0.00021772,2]
[349722421,1737394249752,-500.0,0.00021772,2]
[349722422,1737394249761,-500.0,0.00021772,2]
[349722423,1737394249770,-500.0,0.00021772,2]
[349722424,1737394249779,-1000.0,0.00021772,2]
[349722425,1737394249788,-681.34,0.00021772,2]
[349722426,1737394249797,-500.0,0.00021772,2]
[349722427,1737394249806,-500.0,0.00021772,2]
[349722428,1737394249815,-500.0,0.00021772,2]
[349722429,1737394249825,-1006.86,0.00021772,2]
[349722430,1737394249834,-500.0,0.00021772,2]
[349722431,1737394249843,-500.0,0.00021772,2]
[349722432,1737394249852,-1089.47,0.00021772,2]
[349722433,1737394249862,-500.0,0.00021772,2]
[349722434,1737394249872,-500.0,0.00021772,2]
[349722435,1737394249881,-500.0,0.00021772,2]
[349722436,1737394249890,-500.0,0.00021772,2]
[349722437,1737394249900,-378.82207857,0.00021772,2]
[349722438,1737394249910,-284.33399713,0.00021772,2]
[349722439,1737394249919,-503.32567197,0.00021772,2]
[349722440,1737394249929,-500.0,0.00021772,2]
[349722441,1737394249938,-500.0,0.00021772,2]
[349722442,1737394249947,-500.0,0.00021772,2]
[349722443,1737394249957,-500.0,0.00021772,2]
[349722444,1737394249967,-500.0,0.00021772,2]
[349722445,1737394249979,-500.0,0.00021772,2]
[349722446,1737394249990,-277.64197781,0.00021772,2]
[349722447,1737394250000,-45526.04822083,0.00021772,2]
[349722448,1737394250010,-150.0,0.00021784,2]
[349722449,1737394250020,-217.56182239,0.00021787,2]
[349722450,1737394250029,-218.55575562,0.00021797,2]
[349722451,1737394250039,-150.0,0.00021798,2]
[349722452,1737394250048,-218.55575562,0.00021799,2]
[349722453,1737394250058,-218.55575562,0.00021799,2]
[349722454,1737394250067,-3632.33300602,0.000218,2]
[349722455,1737394250076,-1200.0,0.000218,7]
[349722456,1737394250085,-31125.44109585,0.000218,2]
[349722457,1737394250098,-1000.0,0.000218,2]
[349722458,1737394250107,-3632.33300602,0.00021807,2]
[349722459,1737394250117,-217.56182239,0.00021808,2]
[349722460,1737394250126,-217.56182239,0.00021811,2]
[349722461,1737394250135,-4880.28047905,0.00021818,2]
[349722462,1737394250147,-4880.28047905,0.00021822,2]
[349722463,1737394250157,-500.0,0.00021824,2]
[349722464,1737394250166,-1499.33678925,0.00021831,2]
[349722465,1737394250175,-687.15113883,0.00021831,3]
[349722466,1737394250184,-163.3230869,0.00021831,2]
[349722467,1737394250194,-150.0,0.00021833,2]
[349722468,1737394250203,-500.0,0.0002184,2]
[349722469,1737394250213,-500.0,0.0002184,2]
[349722470,1737394250223,-500.0,0.0002184,2]
[349722471,1737394250236,-500.0,0.0002184,2]
[349722472,1737394250245,-21652.62772208,0.00021842,2]
[349722473,1737394250254,-150.0,0.00021848,2]
[349722474,1737394250264,-150.0,0.00021863,2]
[349722475,1737394250273,-1499.33678925,0.00021864,2]
[349722476,1737394250282,-500.0,0.00021872,2]
[349722477,1737394250291,-500.0,0.00021872,2]
[349722478,1737394250300,-500.0,0.00021872,2]
[349722479,1737394250309,-500.0,0.00021872,2]
[349722480,1737394250320,-500.0,0.00021872,2]
[349722481,1737394250329,-500.0,0.00021872,2]
[349722482,1737394250338,-500.0,0.00021872,2]
[349722483,1737394250347,-500.0,0.00021872,2]
[349722484,1737394250356,-500.0,0.00021872,2]
[349722485,1737394250365,-500.0,0.00021872,2]
[349722486,1737394250374,-500.0,0.00021872,2]
[349722487,1737394250383,-500.0,0.00021872,2]
[349722488,1737394250392,-500.0,0.00021872,2]
[349722489,1737394250402,-500.0,0.00021872,2]
[349722490,1737394250411,-500.0,0.00021872,2]
[349722491,1737394250420,-500.0,0.00021872,2]
[349722492,1737394250429,-500.0,0.00021872,2]
[349722493,1737394250439,-500.0,0.00021872,2]
[349722494,1737394250448,-500.0,0.00021872,2]
[349722495,1737394250458,-500.0,0.00021872,2]
[349722496,1737394250467,-500.0,0.00021872,2]
[349722497,1737394250480,-500.0,0.00021872,2]
[349722498,1737394250489,-500.0,0.00021872,2]
[349722499,1737394250498,-290.42,0.00021872,2]
[349722500,1737394250507,-500.0,0.00021872,2]
[349722501,1737394250517,-500.0,0.00021872,2]
[349722502,1737394250526,-500.0,0.00021872,2]
[349722503,1737394250535,-500.0,0.00021872,2]
[349722504,1737394250544,-500.0,0.00021872,2]
[349722505,1737394250553,-500.0,0.00021872,2]
[349722506,1737394250562,-500.0,0.00021872,2]
[349722507,1737394250571,-500.0,0.00021872,2]
[349722508,1737394250580,-500.0,0.00021872,2]
[349722509,1737394250590,-500.0,0.00021872,2]
[349722510,1737394250599,-500.0,0.00021872,2]
[349722511,1737394250608,-500.0,0.00021872,2]
[349722512,1737394250617,-500.0,0.00021872,2]
[349722513,1737394250626,-500.0,0.00021872,2]
[349722514,1737394250636,-500.0,0.00021872,2]
[349722515,1737394250645,-500.0,0.00021872,2]
[349722516,1737394250654,-500.0,0.00021872,2]
[349722517,1737394250663,-500.0,0.00021872,2]
[349722518,1737394250672,-500.0,0.00021872,2]
[349722519,1737394250681,-500.0,0.00021872,2]
[349722520,1737394250690,-500.0,0.00021872,2]
[349722521,1737394250700,-563.75333174,0.00021872,2]
[349722522,1737394250709,-500.0,0.00021872,2]
[349722523,1737394250718,-500.0,0.00021872,2]
[349722524,1737394250729,-500.0,0.00021872,2]
[349722525,1737394250738,-500.0,0.00021872,2]
[349722526,1737394250748,-1579.73998649,0.00021874,3]
[349722527,1737394250759,-45526.04822083,0.00021876,2]
[349722528,1737394250768,-21652.62772208,0.0002188,2]
[349722529,1737394250777,-21652.62772208,0.0002188,2]
[349722530,1737394250786,-150.0,0.00021881,2]
[349722531,1737394250795,-1499.33678925,0.00021881,2]
[349722532,1737394250804,-4880.28047905,0.00021884,2]
[349722533,1737394250813,-45526.04822083,0.00021887,2]
[349722534,1737394250822,-150.0,0.0002189,2]
[349722535,1737394250831,-45526.04822083,0.00021894,2]
[349722536,1737394250840,-1499.33678925,0.00021895,2]
[349722537,1737394250849,-4880.28047905,0.00021895,2]
[349722538,1737394250858,-218.55575562,0.00021896,2]
[349722539,1737394250868,-3632.33300602,0.00021896,2]
[349722540,1737394250877,-150.0,0.00021898,2]
[349722541,1737394250886,-163.3230869,0.000219,2]
[349722542,1737394250895,-619.84757797,0.000219,2]
[349722543,1737394250905,-6041.53235008,0.000219,2]
[349722544,1737394250915,-162.55834129,0.000219,2]
[349722545,1737394250924,-17557.3945751,0.000219,2]
[349722546,1737394250934,-162.55834124,0.000219,2]
[349722547,1737394250943,-687.15113883,0.000219,3]
[349722548,1737394250953,-162.55834124,0.000219,2]
[349722549,1737394250962,-162.55834124,0.000219,2]
[349722550,1737394250971,-162.55834124,0.000219,2]
[349722551,1737394250986,-162.55834124,0.000219,2]
[349722552,1737394250997,-1877.0,0.000219,2]
[349722553,1737394251007,-150.0,0.00021904,2]
[349722554,1737394251016,-500.0,0.00021917,3]
[349722555,1737394251025,-500.0,0.00021917,3]
[349722556,1737394251035,-1005.49,0.00021917,2]
[349722557,1737394251045,-500.0,0.00021917,2]
[349722558,1737394251055,-500.0,0.00021917,2]
[349722559,1737394251064,-1236.33,0.00021917,2]
[349722560,1737394251074,-500.0,0.00021917,2]
[349722561,1737394251083,-925.16,0.00021917,2]
[349722562,1737394251094,-692.7,0.00021917,2]
[349722563,1737394251104,-605.56,0.00021917,2]
[349722564,1737394251114,-500.0,0.00021917,2]
[349722565,1737394251123,-1472.0,0.00021917,2]
[349722566,1737394251133,-500.0,0.00021917,2]
[349722567,1737394251143,-1089.03,0.00021917,2]
[349722568,1737394251152,-500.0,0.00021917,2]
[349722569,1737394251166,-500.0,0.00021917,2]
[349722570,1737394251175,-500.0,0.00021917,2]
[349722571,1737394251185,-632.33,0.00021917,2]
[349722572,1737394251195,-667.8,0.00021917,2]
[349722573,1737394251204,-500.0,0.00021917,2]
[349722574,1737394251214,-500.0,0.00021917,2]
[349722575,1737394251224,-944.73,0.00021917,2]
[349722576,1737394251239,-1395.87,0.00021917,2]
[349722577,1737394251248,-500.0,0.00021917,2]
[349722578,1737394251258,-481.20707773,0.00021917,2]
[349722579,1737394251268,-1025.56,0.00021917,2]
[349722580,1737394251277,-500.0,0.00021917,2]
[349722581,1737394251287,-150.0,0.00021918,2]
[349722582,1737394251296,-4000.0,0.00021918,2]
[349722583,1737394251305,-150.0,0.00021925,2]
[349722584,1737394251315,-150.0,0.0002193,2]
[349722585,1737394251324,-150.0,0.00021935,2]
[349722586,1737394251333,-150.0,0.00021941,2]
[349722587,1737394251343,-373.8232748,0.00021951,2]
[349722588,1737394251353,-500.0,0.00021951,2]
[349722589,1737394251362,-500.74607928,0.00021951,2]
[349722590,1737394251371,-500.0,0.00021951,2]
[349722591,1737394251504,-500.0,0.00021951,2]
[349722592,1737394251514,-500.0,0.00021951,2]
[349722593,1737394251523,-500.0,0.00021951,2]
[349722594,1737394251532,-509.61055531,0.00021951,2]
[349722595,1737394251541,-466.0829842,0.00021951,2]
[349722596,1737394251551,-506.78429934,0.00021951,2]
[349722597,1737394251560,-500.0,0.00021951,2]
[349722598,1737394251569,-500.0,0.00021951,2]
[349722599,1737394251578,-500.0,0.00021951,2]
[349722600,1737394251587,-500.0,0.00021951,2]
[349722601,1737394251597,-500.0,0.00021951,2]
[349722602,1737394251606,-500.0,0.00021951,2]
[349722603,1737394251615,-500.0,0.00021951,2]
[349722604,1737394251626,-500.0,0.00021951,2]
[349722605,1737394251635,-522.84547182,0.00021951,2]
[349722606,1737394251644,-500.0,0.00021951,2]
[349722607,1737394251653,-500.0,0.00021951,2]
[349722608,1737394251662,-500.0,0.00021951,2]
[349722609,1737394251672,-500.0,0.00021951,2]
[349722610,1737394251681,-500.0,0.00021955,2]
[349722611,1737394251691,-500.0,0.00021955,2]
[349722612,1737394251700,-565.34,0.00021955,2]
[349722613,1737394251710,-500.0,0.00021955,2]
[349722614,1737394251720,-281.921671,0.00021955,2]
[349722615,1737394251730,-500.0,0.00021955,2]
[349722616,1737394251739,-639.65,0.00021955,2]
[349722617,1737394251749,-500.0,0.00021955,2]
[349722618,1737394251758,-831.74,0.00021955,2]
[349722619,1737394251767,-500.0,0.00021955,2]
[349722620,1737394251777,-493.620478,0.00021955,2]
[349722621,1737394251785,-500.0,0.00021955,2]
[349722622,1737394251795,-500.0,0.00021955,2]
[349722623,1737394251804,-500.0,0.00021955,2]
[349722624,1737394251813,-959.03,0.00021955,2]
[349722625,1737394251822,-1369.28,0.00021955,2]
[349722626,1737394251831,-813.79,0.00021955,2]
[349722627,1737394251840,-567.58,0.00021955,2]
[349722628,1737394251849,-1448.95,0.00021955,2]
[349722629,1737394251859,-1532.61,0.00021955,2]
[349722630,1737394251868,-500.0,0.00021955,2]
[349722631,1737394251877,-1060.8,0.00021955,2]
[349722632,1737394251887,-678.05,0.00021955,2]
[349722633,1737394251896,-2257.41,0.00021955,2]
[349722634,1737394251905,-685.81,0.00021955,2]
[349722635,1737394251915,-500.0,0.00021955,2]
[349722636,1737394251924,-633.73,0.00021955,2]
[349722637,1737394251933,-824.73,0.00021955,2]
[349722638,1737394251943,-500.0,0.00021955,2]
[349722639,1737394251952,-1039.72,0.00021955,2]
[349722640,1737394251962,-872.04,0.00021955,2]
[349722641,1737394251972,-644.42,0.00021955,2]
[349722642,1737394251983,-1761.75,0.00021955,2]
[349722643,1737394251993,-150.0,0.00021962,2]
[349722644,1737394252003,-150.0,0.00021967,2]
[349722645,1737394252012,-150.0,0.00021968,2]
[349722646,1737394252022,-150.0,0.00021973,2]
[349722647,1737394252032,-150.0,0.00021976,2]
[349722648,1737394252041,-150.0,0.00021984,2]
[349722649,1737394252051,-10100.75090405,0.0002199,14]
[349722650,1737394252061,-500.0,0.00021995,2]
[349722651,1737394252071,-500.0,0.00021995,2]
[349722652,1737394252080,-500.0,0.00021995,2]
[349722653,1737394252090,-500.0,0.00021995,2]
[349722654,1737394252101,-796.27,0.00021995,2]
[349722655,1737394252111,-500.0,0.00021995,2]
[349722656,1737394252120,-500.0,0.00021995,2]
[349722657,1737394252130,-500.0,0.00021995,2]
[349722658,1737394252140,-500.0,0.00021995,2]
[349722659,1737394252153,-500.0,0.00021995,2]
[349722660,1737394252163,-547.87,0.00021995,2]
[349722661,1737394252172,-310.74850341,0.00021995,2]
[349722662,1737394252181,-500.0,0.00021995,2]
[349722663,1737394252192,-500.0,0.00021995,2]
[349722664,1737394252201,-500.0,0.00021995,2]
[349722665,1737394252210,-253.20241375,0.00021995,2]
[349722666,1737394252221,-500.0,0.00021995,2]
[349722667,1737394252233,-500.0,0.00021995,2]
[349722668,1737394252242,-500.0,0.00021995,2]
[349722669,1737394252251,-648.26,0.00021995,2]
[349722670,1737394252261,-500.0,0.00021995,2]
[349722671,1737394252270,-500.0,0.00021995,2]
[349722672,1737394252279,-500.0,0.00021995,2]
[349722673,1737394252289,-500.0,0.00021995,2]
[349722674,1737394252298,-500.0,0.00021995,2]
[349722675,1737394252307,-500.0,0.00021995,2]
[349722676,1737394252316,-500.0,0.00021995,2]
[349722677,1737394252326,-500.0,0.00021995,2]
[349722678,1737394252335,-500.0,0.00021995,2]
[349722679,1737394252344,-500.0,0.00021995,2]
[349722680,1737394252353,-500.0,0.00021995,2]
[349722681,1737394252362,-500.0,0.00021995,2]
[349722682,1737394252372,-500.0,0.00021995,2]
[349722683,1737394252380,-500.0,0.00021995,2]
[349722684,1737394252390,-500.0,0.00021995,2]
[349722685,1737394252399,-303.73,0.00021995,2]
[349722686,1737394252408,-500.0,0.00021995,2]
[349722687,1737394252417,-500.0,0.00021995,2]
[349722688,1737394252427,-500.0,0.00021995,2]
[349722689,1737394252436,-500.0,0.00021995,2]
[349722690,1737394252445,-500.0,0.00021995,2]
[349722691,1737394252454,-500.0,0.00021995,2]
[349722692,1737394252463,-500.0,0.00021995,2]
[349722693,1737394252473,-500.0,0.00021995,2]
[349722694,1737394252485,-500.0,0.00021995,2]
[349722695,1737394252494,-500.0,0.00021995,2]
[349722696,1737394252503,-500.0,0.00021995,2]
[349722697,1737394252512,-500.0,0.00021995,2]
[349722698,1737394252522,-500.0,0.00021995,2]
[349722699,1737394252532,-349.95,0.00021995,2]
[349722700,1737394252541,-500.0,0.00021995,2]
[349722701,1737394252550,-1485.47,0.00021995,2]
[349722702,1737394252560,-500.0,0.00021995,2]
[349722703,1737394252569,-184.35,0.00021995,2]
[349722704,1737394252578,-500.0,0.00021995,2]
[349722705,1737394252588,-695.67,0.00021995,2]
[349722706,1737394252597,-500.0,0.00021995,2]
[349722707,1737394252606,-805.65,0.00021995,2]
[349722708,1737394252616,-500.0,0.00021995,2]
[349722709,1737394252626,-500.0,0.00021995,2]
[349722710,1737394252635,-500.0,0.00021995,2]
[349722711,1737394252645,-692.94,0.00021995,2]
[349722712,1737394252654,-591.06,0.00021995,2]
[349722713,1737394252664,-500.0,0.00021995,2]
[349722714,1737394252674,-500.0,0.00021995,2]
[349722715,1737394252683,-500.0,0.00021995,2]
[349722716,1737394252692,-500.0,0.00021995,2]
[349722717,1737394252702,-500.0,0.00021995,2]
[349722718,1737394252711,-787.73,0.00021995,2]
[349722719,1737394252720,-500.0,0.00021995,2]
[349722720,1737394252732,-538.71419676,0.00021995,2]
[349722721,1737394252742,-500.0,0.00021995,2]
[349722722,1737394252751,-500.0,0.00021995,2]
[349722723,1737394252760,-500.0,0.00021995,2]
[349722724,1737394252770,-500.0,0.00021995,2]
[349722725,1737394252779,-697.59,0.00021995,2]
[349722726,1737394252788,-500.0,0.00021995,2]
[349722727,1737394252797,-500.0,0.00021995,2]
[349722728,1737394252807,-500.0,0.00021995,2]
[349722729,1737394252816,-500.0,0.00021995,2]
[349722730,1737394252825,-500.0,0.00021995,2]
[349722731,1737394252835,-621.16,0.00021995,2]
[349722732,1737394252843,-500.0,0.00021995,2]
[349722733,1737394252853,-500.0,0.00021995,2]
[349722734,1737394252863,-500.0,0.00021995,2]
[349722735,1737394252872,-500.0,0.00021995,2]
[349722736,1737394252881,-500.0,0.00021995,2]
[349722737,1737394252891,-332.01,0.00021995,2]
[349722738,1737394252900,-500.0,0.00021995,2]
[349722739,1737394252910,-500.0,0.00021995,2]
[349722740,1737394252919,-679.61,0.00021995,2]
[349722741,1737394252929,-500.0,0.00021995,2]
[349722742,1737394252938,-500.0,0.00021995,2]
[349722743,1737394252948,-500.0,0.00021995,2]
[349722744,1737394252957,-500.0,0.00021995,2]
[349722745,1737394252966,-1444.33,0.00021995,2]
[349722746,1737394252975,-500.0,0.00021995,2]
[349722747,1737394252991,-957.75,0.00021995,2]
[349722748,1737394253000,-500.0,0.00021995,2]
[349722749,1737394253010,-794023.88094943,0.00021997,2]
[349722750,1737394253019,-151.0,0.00021997,7]
[349722751,1737394253028,-151.0,0.00021997,7]
[349722752,1737394253038,-151.0,0.00021997,7]
[349722753,1737394253047,-151.0,0.00021997,7]
[349722754,1737394253057,-151.318702,0.00021997,7]
[349722755,1737394253068,-151.0,0.00021997,7]
[349722756,1737394253077,-151.0,0.00021997,7]
[349722757,1737394253086,-151.0,0.00021997,7]
[349722758,1737394253095,-151.0,0.00021997,7]
[349722759,1737394253105,-151.0,0.00021997,7]
[349722760,1737394253115,-151.0,0.00021997,7]
[349722761,1737394253124,-151.0,0.00021997,7]
[349722762,1737394253134,-1109.337215,0.00021997,7]
[349722763,1737394253144,-1109.337215,0.00021997,7]
[349722764,1737394253157,-151.0,0.00021997,7]
[349722765,1737394253167,-151.0,0.00021997,7]
[349722766,1737394253179,-151.0,0.00021997,7]
[349722767,1737394253189,-151.0,0.00021997,7]
[349722768,1737394253199,-157.705546,0.00021997,7]
[349722769,1737394253209,-151.0,0.00021997,7]
[349722770,1737394253219,-151.0,0.00021997,7]
[349722771,1737394253233,-151.0,0.00021997,7]
[349722772,1737394253245,-259370.31148461,0.00021998,2]
[349722773,1737394253254,-315616.85094394,0.00021998,2]
[349722774,1737394253264,-229.60541799,0.00021998,2]
[349722775,1737394253273,-151.0,0.00021998,7]
[349722776,1737394253283,-2000.0,0.00021999,2]
[349722777,1737394253292,-500.0,0.00021999,2]
[349722778,1737394253301,-369.52943055,0.00021999,2]
[349722779,1737394253311,-724743.86819041,0.00022,2]
[349722780,1737394253320,-691.9839767,0.00022,2]
[349722781,1737394253330,-251.97,0.00022,2]
[349722782,1737394253339,-353716.39628619,0.00022,2]
[349722783,1737394253515,-7900.83398839,0.00022,2]
[349722784,1737394253527,-22169.90594998,0.00022,2]
[349722785,1737394253538,-50200.0,0.00022,2]
[349722786,1737394253549,-3032.48731367,0.00022,2]
[349722787,1737394253702,-500.0,0.00021447,2]
[349722788,1737394253713,-502.81069035,0.00021498,2]
[349722789,1737394253723,-500.0,0.00021721,2]
[349722790,1737394253735,-3755.68930965,0.00022,2]
[349722791,1737394253746,-380.70042658,0.00022,2]
[349722792,1737394253888,-10488.00000001,0.00022,2]
[349722793,1737394253899,-1106.1681766,0.00022,2]
[349722794,1737394253911,-1269.68063999,0.00022,2]
[349722795,1737394253922,-2636.7939234,0.00022,2]
[349722796,1737394253933,-32480.68849221,0.00022,2]
[349722797,1737394254213,-500.0,0.00019999,2]
[349722798,1737394254224,-497.32,0.00021133,2]
[349722799,1737394254240,-1252.92462411,0.00021133,2]
[349722800,1737394254366,-197.881526,0.00019999,2]
[349722801,1737394254375,-449.057384,0.00021133,2]
[349722802,1737394254390,-3441.31555389,0.00021133,2]
[349722803,1737394254402,-2460.82971521,0.00021133,2]
[349722804,1737394254411,-454748.57198703,0.00022,2]
[349722805,1737394254422,-3381.75860498,0.00022,2]
[349722806,1737394254440,-9134.050334,0.00022,2]
[349722807,1737394254455,-252.48890995,0.00022,2]
[349722808,1737394254475,-527738.38408987,0.00022,2]
[349722809,1737394317231,25827.21562637,0.0002,120]
[349722810,1737394615670,153.62,0.00010137,2]
[349722812,1737394688736,-173.02,0.00016093,2]
[349722813,1737394688760,-153.62,0.00017184,2]
[349722814,1737394688782,-343.2300941,0.00018164,2]
[349722815,1737394688804,-500.0,0.00018164,2]
[349722816,1737394688832,-330.1299059,0.00018164,7]
[349722817,1737394906694,21281.1869955,0.00024,120]
[349722843,1737395408448,168.78,0.0001505,2]
[349722864,1737395431561,-855.62078487,0.000179,2]
[349722865,1737395431572,-1258.96,0.00017927,2]
[349722866,1737395431584,-1800.0,0.00018,19]
[349722867,1737395431594,-96.4800941,0.00018164,7]
[349722868,1737395431604,-211.18,0.00018861,2]
[349722869,1737395431614,-174.92,0.00018953,2]
[349722870,1737395431625,-1800.0,0.00019,20]
[349722871,1737395431635,-300.0,0.00019166,2]
[349722872,1737395431645,-6009.69792103,0.00019167,2]
[349722873,1737395431662,-5431.92,0.00019167,2]
[349722874,1737395431673,-2565.0,0.00019167,2]
[349722875,1737395431685,-5696.39207897,0.00019167,2]
[349722876,1737395431695,-250.0,0.00019206,2]
[349722877,1737395431705,-175.71,0.00019248,2]
[349722878,1737395431714,-3358.70257621,0.00019289,2]
[349722879,1737395431959,-3.43183336,0.00019289,2]
[349722880,1737395431972,-1649.09013735,0.00019289,2]
[349722881,1737395434326,-900.56920043,0.00019289,2]
[349722882,1737395434338,-1153.98799815,0.00019289,2]
[349722883,1737395434350,-3550.0,0.00019289,2]
[349722884,1737395434361,-616.000001,0.00019289,2]
[349722885,1737395434373,-2567.625,0.00019289,2]
[349722886,1737395434386,-9011.7121535,0.00019289,2]
[349722887,1737395434396,-150.99,0.00019339,2]
[349722888,1737395434406,-9999.99,0.00019339,2]
[349722889,1737395434416,-9999.99,0.00019339,2]
[349722890,1737395434427,-150.99,0.00019339,2]
[349722891,1737395434436,-1629.21,0.00019339,2]
[349722892,1737395434446,-1706.8,0.00019389,30]
[349722893,1737395434455,-538.44,0.00019458,2]
[349722894,1737395434465,-499.99,0.00019458,2]
[349722895,1737395434475,-999.99,0.00019458,2]
[349722896,1737395434485,-250.0,0.00019698,2]
[349722897,1737395434495,-1000.0,0.00019705,2]
[349722898,1737395434506,-250.0,0.0001975,2]
[349722899,1737395434517,-1607.686,0.00019898,2]
[349722900,1737395434527,-500.0,0.00019899,2]
[349722901,1737395434543,-500.0,0.00019899,2]
[349722902,1737395434553,-500.0,0.00019899,2]
[349722903,1737395434563,-500.0,0.00019899,2]
[349722904,1737395434573,-500.0,0.00019899,2]
[349722905,1737395434584,-500.0,0.00019899,2]
[349722906,1737395434594,-530.30666549,0.00019899,2]
[349722907,1737395434604,-500.0,0.00019899,2]
[349722908,1737395434613,-500.0,0.00019899,2]
[349722909,1737395434623,-500.0,0.00019899,2]